fUST/lending_fUST_20250619
["ID","MTS","AMOUNT","RATE_DAILY","PERIOD"]
[366492175,1750288248336,-460.0,0.00023013,6]
[366492176,1750288248346,-561.15,0.00023013,6]
[366492177,1750288248356,-460.0,0.00023013,6]
[366492178,1750288248366,-460.0,0.00023013,6]
[366492179,1750288248375,-680.8,0.00023013,6]
[366492180,1750288248386,-460.0,0.00023013,6]
[366492181,1750288248396,-460.0,0.00023013,6]
[366492182,1750288248406,-530.15,0.00023013,6]
[366492183,1750288248419,-2681.74,0.00023013,6]
[366492184,1750288248428,-360.0,0.00023013,6]
[366492185,1750288248438,-460.0,0.00023013,6]
[366492186,1750288248447,-465.00257527,0.00023013,6]
[366492187,1750288248463,-1450.7,0.00023013,6]
[366492188,1750288248475,-460.0,0.00023013,6]
[366492189,1750288248486,-340.0,0.00023013,6]
[366492190,1750288248502,-1370.09,0.00023013,6]
[366492191,1750288248512,-460.0,0.00023013,6]
[366492192,1750288248521,-460.0,0.00023013,6]
[366492193,1750288248531,-460.0,0.00023013,6]
[366492194,1750288248541,-1428.41,0.00023013,6]
[366492195,1750288248550,-528.69,0.00023013,6]
[366492196,1750288248560,-514.49,0.00023013,6]
[366492197,1750288248570,-460.0,0.00023013,6]
[366492198,1750288248579,-251.46070835,0.00023013,6]
[366492199,1750288248589,-717.35,0.00023013,6]
[366492200,1750288248599,-2477.32,0.00023013,6]
[366492201,1750288248610,-1820.15,0.00023013,6]
[366492202,1750288248620,-460.0,0.00023013,6]
[366492203,1750288248630,-460.0,0.00023013,6]
[366492204,1750288248640,-460.0,0.00023013,6]
[366492205,1750288248650,-1294.92,0.00023013,6]
[366492206,1750288248660,-460.0,0.00023013,6]
[366492207,1750288248669,-589.19,0.00023013,2]
[366492208,1750288248682,-570.56,0.00023013,6]
[366492209,1750288248692,-460.0,0.00023013,6]
[366492210,1750288248702,-746.06,0.00023013,6]
[366492211,1750288248712,-887.24,0.00023013,6]
[366492212,1750288248722,-1211.57,0.00023013,6]
[366492213,1750288248731,-1667.65,0.00023013,6]
[366492214,1750288248741,-460.0,0.00023013,6]
[366492215,1750288248751,-460.0,0.00023013,6]
[366492216,1750288248761,-460.0,0.00023013,6]
[366492217,1750288248770,-5401.48,0.00023013,6]
[366492218,1750288248779,-494.64,0.00023013,6]
[366492219,1750288248789,-746.12,0.00023013,6]
[366492220,1750288248799,-424.65257834,0.00023013,6]
[366492221,1750288248808,-168.0,0.00023025,2]
[366492222,1750288248817,-260.0,0.00023047,2]
[366492223,1750288248827,-2160.0,0.00023054,2]
[366492224,1750288248837,-653.0,0.00023054,2]
[366492225,1750288248846,-536.0,0.00023056,2]
[366492226,1750288248856,-264.85177928,0.00023061,2]
[366492227,1750288248866,-2323.797823,0.00023089,3]
[366492228,1750288248875,-386.53,0.000231,7]
[366492229,1750288248886,-151.0,0.000231,7]
[366492230,1750288248896,-232.181356,0.000231,7]
[366492231,1750288248905,-151.0,0.000231,7]
[366492232,1750288248915,-248.89653,0.000231,7]
[366492233,1750288248925,-153.026314,0.000231,7]
[366492234,1750288248934,-162.365828,0.000231,7]
[366492235,1750288248945,-162.365828,0.000231,7]
[366492236,1750288248955,-151.0,0.000231,7]
[366492237,1750288248965,-151.0,0.000231,7]
[366492238,1750288248975,-151.0,0.000231,7]
[366492239,1750288248984,-151.0,0.000231,7]
[366492240,1750288248995,-151.0,0.000231,7]
[366492241,1750288249005,-152.723516,0.000231,7]
[366492242,1750288249015,-151.0,0.000231,2]
[366492243,1750288249025,-194.356652,0.000231,7]
[366492244,1750288249036,-194.356652,0.000231,7]
[366492245,1750288249046,-151.0,0.000231,7]
[366492246,1750288249055,-151.0,0.000231,7]
[366492247,1750288249065,-151.927387,0.000231,7]
[366492248,1750288249075,-151.0,0.000231,7]
[366492249,1750288249085,-151.0,0.000231,7]
[366492250,1750288249095,-151.0,0.000231,7]
[366492251,1750288249106,-376.716354,0.000231,7]
[366492252,1750288249117,-376.716354,0.000231,7]
[366492253,1750288249127,-6417.58066436,0.0002315,2]
[366492254,1750288249138,-151.0,0.0002315,7]
[366492255,1750288249148,-5000.0,0.00023157,2]
[366492256,1750288249158,-260.0,0.00023158,2]
[366492257,1750288249168,-1000.0,0.000232,7]
[366492258,1750288249178,-262.69671347,0.00023223,2]
[366492259,1750288249189,-536.0,0.00023242,2]
[366492260,1750288249198,-151.0,0.0002326,7]
[366492261,1750288249208,-151.0,0.0002326,7]
[366492262,1750288249218,-1206.94603359,0.00023268,2]
[366492263,1750288249228,-460.0,0.00023287,6]
[366492264,1750288249237,-151.0,0.00023287,7]
[366492265,1750288249247,-151.0,0.00023287,7]
[366492266,1750288249257,-151.0,0.00023287,7]
[366492267,1750288249267,-460.0,0.00023287,6]
[366492268,1750288249276,-460.0,0.00023287,6]
[366492269,1750288249287,-460.0,0.00023287,6]
[366492270,1750288249297,-497.84,0.00023287,6]
[366492271,1750288249307,-460.0,0.00023287,6]
[366492272,1750288249317,-227.19657566,0.00023287,6]
[366492273,1750288249327,-460.0,0.00023287,6]
[366492274,1750288249336,-460.0,0.00023287,6]
[366492275,1750288249346,-566.34,0.00023287,6]
[366492276,1750288249358,-460.0,0.00023287,6]
[366492277,1750288249369,-674.57,0.00023287,6]
[366492278,1750288249379,-460.0,0.00023287,6]
[366492279,1750288249390,-460.0,0.00023287,6]
[366492280,1750288249400,-460.0,0.00023287,6]
[366492281,1750288249411,-460.0,0.00023287,6]
[366492282,1750288249423,-460.0,0.00023287,6]
[366492283,1750288249433,-1259.89,0.00023287,6]
[366492284,1750288249443,-539.49,0.00023287,6]
[366492285,1750288249453,-857.84,0.00023287,6]
[366492286,1750288249462,-2359.25,0.00023287,6]
[366492287,1750288249472,-729.85,0.00023287,6]
[366492288,1750288249482,-3535.11,0.00023287,6]
[366492289,1750288249491,-460.0,0.00023287,6]
[366492291,1750288249503,-708.82,0.00023287,6]
[366492293,1750288249512,-460.0,0.00023287,6]
[366492295,1750288249522,-460.0,0.00023287,6]
[366492297,1750288249531,-460.0,0.00023287,6]
[366492299,1750288249541,-460.0,0.00023287,6]
[366492301,1750288249551,-601.11,0.00023287,6]
[366492303,1750288249560,-460.0,0.00023287,6]
[366492305,1750288249570,-460.0,0.00023287,6]
[366492306,1750288249579,-704.51,0.00023287,6]
[366492307,1750288249589,-2913.28,0.00023287,6]
[366492308,1750288249599,-3761.47,0.00023287,6]
[366492309,1750288249610,-1278.45,0.00023287,6]
[366492310,1750288249619,-460.0,0.00023287,6]
[366492311,1750288249629,-842.53,0.00023287,6]
[366492312,1750288249638,-460.0,0.00023287,6]
[366492313,1750288249648,-500.2,0.00023287,6]
[366492314,1750288249657,-612.61,0.00023287,6]
[366492315,1750288249667,-982.38,0.00023287,6]
[366492316,1750288249677,-460.0,0.00023287,6]
[366492317,1750288249686,-2124.4,0.00023287,6]
[366492318,1750288249696,-561.15,0.00023287,6]
[366492319,1750288249705,-460.0,0.00023287,6]
[366492320,1750288249714,-568.44497375,0.00023287,6]
[366492321,1750288249724,-460.0,0.00023287,6]
[366492322,1750288249734,-680.8,0.00023287,6]
[366492324,1750288249743,-460.0,0.00023287,6]
[366492326,1750288249753,-460.0,0.00023287,6]
[366492328,1750288249762,-530.15,0.00023287,6]
[366492330,1750288249772,-2681.74,0.00023287,6]
[366492332,1750288249781,-460.0,0.00023287,6]
[366492334,1750288249791,-1450.7,0.00023287,6]
[366492336,1750288249800,-460.0,0.00023287,6]
[366492338,1750288249809,-1370.09,0.00023287,6]
[366492339,1750288249818,-460.0,0.00023287,6]
[366492340,1750288249827,-460.0,0.00023287,6]
[366492341,1750288249836,-460.0,0.00023287,6]
[366492343,1750288249846,-1428.41,0.00023287,6]
[366492345,1750288249856,-528.69,0.00023287,6]
[366492347,1750288249867,-514.49,0.00023287,6]
[366492349,1750288249876,-460.0,0.00023287,6]
[366492351,1750288249885,-2477.32,0.00023287,6]
[366492353,1750288249894,-717.35,0.00023287,6]
[366492355,1750288249904,-1820.15,0.00023287,6]
[366492357,1750288249913,-460.0,0.00023287,6]
[366492359,1750288249922,-460.0,0.00023287,6]
[366492360,1750288249931,-460.0,0.00023287,6]
[366492362,1750288249941,-1294.92,0.00023287,6]
[366492365,1750288249950,-440.0,0.00023287,6]
[366492366,1750288249960,-589.19,0.00023287,2]
[366492368,1750288249969,-460.0,0.00023287,6]
[366492370,1750288249978,-746.06,0.00023287,6]
[366492372,1750288249987,-887.24,0.00023287,6]
[366492374,1750288249997,-1211.57,0.00023287,6]
[366492375,1750288250006,-1667.65,0.00023287,6]
[366492376,1750288250016,-460.0,0.00023287,6]
[366492377,1750288250025,-460.0,0.00023287,6]
[366492378,1750288250034,-460.0,0.00023287,6]
[366492379,1750288250044,-5401.48,0.00023287,6]
[366492380,1750288250053,-494.64,0.00023287,6]
[366492381,1750288250063,-746.12,0.00023287,6]
[366492382,1750288250073,-1147.54,0.00023288,2]
[366492383,1750288250082,-500.59896885,0.00023312,2]
[366492384,1750288250091,-1200.0,0.00023321,2]
[366492385,1750288250101,-1000.0,0.00023321,2]
[366492386,1750288250111,-1000.0,0.00023321,2]
[366492387,1750288250121,-1000.0,0.00023321,2]
[366492388,1750288250131,-1000.0,0.00023321,2]
[366492389,1750288250141,-151.0,0.00023321,7]
[366492390,1750288250151,-162.365828,0.00023321,7]
[366492391,1750288250160,-162.365828,0.00023321,7]
[366492392,1750288250170,-151.0,0.00023321,7]
[366492393,1750288250179,-5000.0,0.00023326,2]
[366492394,1750288250189,-500.0,0.00023345,2]
[366492395,1750288250198,-24549.49061129,0.00023352,2]
[366492396,1750288250208,-151.0,0.00023352,7]
[366492397,1750288250218,-152.51786,0.00023352,7]
[366492398,1750288250227,-151.0,0.00023352,7]
[366492399,1750288250237,-191.188442,0.00023352,7]
[366492400,1750288250247,-151.0,0.00023352,7]
[366492401,1750288250256,-151.0,0.00023352,7]
[366492402,1750288250266,-280.235803,0.00023352,7]
[366492403,1750288250275,-151.0,0.00023352,7]
[366492404,1750288250285,-151.0,0.00023352,7]
[366492405,1750288250295,-151.0,0.00023352,7]
[366492406,1750288250304,-151.0,0.00023352,2]
[366492407,1750288250314,-194.356652,0.00023352,7]
[366492408,1750288250324,-194.356652,0.00023352,7]
[366492409,1750288250334,-151.0,0.00023352,7]
[366492410,1750288250344,-151.0,0.00023352,7]
[366492411,1750288250354,-151.0,0.00023352,7]
[366492412,1750288250364,-151.0,0.00023352,7]
[366492413,1750288250375,-151.0,0.00023352,7]
[366492414,1750288250384,-376.716354,0.00023352,7]
[366492415,1750288250393,-376.716354,0.00023352,7]
[366492416,1750288250403,-151.0,0.00023352,7]
[366492417,1750288250414,-500.0,0.00023355,2]
[366492418,1750288250425,-4000.0,0.00023388,2]
[366492419,1750288250435,-151.0,0.000234,8]
[366492420,1750288250445,-1000.0,0.00023418,2]
[366492421,1750288250455,-215.0738,0.00023434,2]
[366492422,1750288250465,-150.0,0.00023468,2]
[366492423,1750288250592,-150.0,0.00023468,2]
[366492424,1750288250602,-150.0,0.00023468,2]
[366492425,1750288250612,-176.14,0.00023468,2]
[366492426,1750288250621,-964.0,0.00023468,2]
[366492427,1750288250630,-293.85068442,0.0002348,2]
[366492428,1750288250640,-826.93124534,0.000235,2]
[366492429,1750288250649,-200.0,0.000235,3]
[366492430,1750288250659,-161.31123895,0.000235,7]
[366492431,1750288250669,-151.0,0.000235,9]
[366492432,1750288250679,-168.17519988,0.000235,2]
[366492433,1750288250688,-1000.0,0.000235,2]
[366492434,1750288250698,-641.0,0.000235,2]
[366492435,1750288250708,-500.0,0.00023558,2]
[366492436,1750288250718,-460.0,0.00023561,6]
[366492437,1750288250727,-460.0,0.00023561,6]
[366492438,1750288250736,-151.0,0.00023561,7]
[366492439,1750288250745,-354.94745615,0.00023561,6]
[366492440,1750288250755,-422.86733,0.00023561,6]
[366492441,1750288250763,-162.365828,0.00023561,7]
[366492442,1750288250772,-162.365828,0.00023561,7]
[366492443,1750288250782,-151.0,0.00023561,7]
[366492444,1750288250791,-497.84,0.00023561,6]
[366492445,1750288250799,-460.0,0.00023561,6]
[366492446,1750288250809,-460.0,0.00023561,6]
[366492447,1750288250818,-270.0,0.00023561,6]
[366492448,1750288250827,-566.34,0.00023561,6]
[366492449,1750288250837,-460.0,0.00023561,6]
[366492450,1750288250846,-674.57,0.00023561,6]
[366492451,1750288250855,-460.0,0.00023561,6]
[366492452,1750288250865,-460.0,0.00023561,6]
[366492453,1750288250875,-460.0,0.00023561,6]
[366492454,1750288250884,-460.0,0.00023561,6]
[366492455,1750288250893,-1259.89,0.00023561,6]
[366492456,1750288250902,-539.49,0.00023561,6]
[366492457,1750288250911,-857.84,0.00023561,6]
[366492458,1750288250920,-2359.25,0.00023561,6]
[366492459,1750288250929,-729.85,0.00023561,6]
[366492460,1750288250939,-3535.11,0.00023561,6]
[366492461,1750288250948,-460.0,0.00023561,6]
[366492462,1750288250958,-708.82,0.00023561,6]
[366492463,1750288250967,-460.0,0.00023561,6]
[366492464,1750288250976,-460.0,0.00023561,6]
[366492465,1750288250985,-460.0,0.00023561,6]
[366492466,1750288250994,-460.0,0.00023561,6]
[366492467,1750288251003,-601.11,0.00023561,6]
[366492468,1750288251012,-460.0,0.00023561,6]
[366492469,1750288251021,-460.0,0.00023561,6]
[366492470,1750288251030,-704.51,0.00023561,6]
[366492471,1750288251040,-2913.28,0.00023561,6]
[366492472,1750288251050,-3761.47,0.00023561,6]
[366492473,1750288251058,-1278.45,0.00023561,6]
[366492474,1750288251067,-460.0,0.00023561,6]
[366492475,1750288251076,-842.53,0.00023561,6]
[366492476,1750288251085,-460.0,0.00023561,6]
[366492477,1750288251094,-500.2,0.00023561,6]
[366492478,1750288251103,-612.61,0.00023561,6]
[366492479,1750288251112,-982.38,0.00023561,6]
[366492480,1750288251121,-460.0,0.00023561,6]
[366492481,1750288251131,-2124.4,0.00023561,6]
[366492482,1750288251140,-561.15,0.00023561,6]
[366492483,1750288251149,-460.0,0.00023561,6]
[366492484,1750288251159,-460.0,0.00023561,6]
[366492485,1750288251168,-680.8,0.00023561,6]
[366492486,1750288251177,-460.0,0.00023561,6]
[366492487,1750288251187,-460.0,0.00023561,6]
[366492488,1750288251196,-530.15,0.00023561,6]
[366492489,1750288251206,-2681.74,0.00023561,6]
[366492490,1750288251215,-460.0,0.00023561,6]
[366492491,1750288251224,-1450.7,0.00023561,6]
[366492492,1750288251233,-460.0,0.00023561,6]
[366492493,1750288251243,-1370.09,0.00023561,6]
[366492494,1750288251252,-460.0,0.00023561,6]
[366492495,1750288251261,-460.0,0.00023561,6]
[366492496,1750288251271,-460.0,0.00023561,6]
[366492497,1750288251280,-1428.41,0.00023561,6]
[366492498,1750288251290,-528.69,0.00023561,6]
[366492499,1750288251299,-514.49,0.00023561,6]
[366492500,1750288251309,-2477.32,0.00023561,6]
[366492501,1750288251318,-717.35,0.00023561,6]
[366492502,1750288251327,-1820.15,0.00023561,6]
[366492503,1750288251337,-460.0,0.00023561,6]
[366492504,1750288251347,-460.0,0.00023561,6]
[366492505,1750288251358,-460.0,0.00023561,6]
[366492506,1750288251367,-1294.92,0.00023561,6]
[366492507,1750288251376,-589.19,0.00023561,2]
[366492508,1750288251385,-460.0,0.00023561,6]
[366492509,1750288251394,-746.06,0.00023561,6]
[366492510,1750288251404,-887.24,0.00023561,6]
[366492511,1750288251414,-1211.57,0.00023561,6]
[366492512,1750288251425,-1667.65,0.00023561,6]
[366492513,1750288251435,-460.0,0.00023561,6]
[366492514,1750288251444,-460.0,0.00023561,6]
[366492515,1750288251455,-460.0,0.00023561,6]
[366492516,1750288251464,-5401.48,0.00023561,6]
[366492517,1750288251474,-494.64,0.00023561,6]
[366492518,1750288251483,-746.12,0.00023561,6]
[366492519,1750288251494,-500.0,0.00023573,2]
[366492520,1750288251503,-168.0,0.00023583,2]
[366492521,1750288251513,-16590.75322024,0.00023586,2]
[366492522,1750288251522,-151.0,0.000236,10]
[366492523,1750288251531,-3000.0,0.000236,2]
[366492524,1750288251540,-3000.0,0.000236,2]
[366492525,1750288251550,-176.735884,0.000236,7]
[366492526,1750288251560,-151.0,0.000236,7]
[366492527,1750288251569,-151.0,0.000236,7]
[366492528,1750288251579,-151.0,0.000236,7]
[366492529,1750288251588,-376.716354,0.000236,7]
[366492530,1750288251596,-376.716354,0.000236,7]
[366492531,1750288251607,-262.69671347,0.000236,2]
[366492532,1750288251622,-151.0,0.000236,7]
[366492533,1750288251634,-3000.0,0.0002361,2]
[366492534,1750288251643,-3000.0,0.0002361,2]
[366492535,1750288251652,-151.0,0.0002361,7]
[366492536,1750288251662,-3000.0,0.0002362,2]
[366492537,1750288251671,-3000.0,0.0002362,2]
[366492538,1750288251682,-151.0,0.0002362,7]
[366492539,1750288251693,-151.0,0.0002362,7]
[366492540,1750288251704,-151.0,0.0002362,7]
[366492541,1750288251713,-151.0,0.0002362,7]
[366492542,1750288251722,-151.0,0.0002362,7]
[366492543,1750288251731,-151.0,0.0002362,7]
[366492544,1750288251742,-151.0,0.0002362,2]
[366492545,1750288251752,-194.356652,0.0002362,7]
[366492546,1750288251763,-194.356652,0.0002362,7]
[366492547,1750288251772,-151.0,0.0002362,7]
[366492548,1750288251782,-3000.0,0.0002363,2]
[366492549,1750288251793,-3000.0,0.0002363,2]
[366492550,1750288251804,-3000.0,0.0002364,2]
[366492551,1750288251814,-3000.0,0.0002364,2]
[366492552,1750288251824,-3000.0,0.0002365,2]
[366492553,1750288251834,-3000.0,0.0002365,2]
[366492554,1750288251844,-500.0,0.0002365,2]
[366492555,1750288251855,-3000.0,0.0002366,2]
[366492556,1750288251867,-3000.0,0.0002366,2]
[366492557,1750288251879,-3000.0,0.0002367,2]
[366492558,1750288251890,-3000.0,0.0002367,2]
[366492559,1750288251900,-3000.0,0.0002368,2]
[366492560,1750288251910,-3000.0,0.0002368,2]
[366492561,1750288251920,-6817.81263633,0.00023687,2]
[366492562,1750288251930,-3000.0,0.0002369,2]
[366492563,1750288251939,-3000.0,0.0002369,2]
[366492564,1750288251948,-4000.0,0.000237,10]
[366492565,1750288251958,-49693.54,0.000237,7]
[366492566,1750288251967,-151.0,0.000237,8]
[366492567,1750288251976,-3000.0,0.000237,2]
[366492568,1750288251986,-3000.0,0.000237,2]
[366492569,1750288251995,-274.042696,0.000237,7]
[366492570,1750288252004,-151.0,0.000237,7]
[366492571,1750288252013,-151.0,0.000237,7]
[366492572,1750288252022,-162.365828,0.000237,7]
[366492573,1750288252031,-162.365828,0.000237,7]
[366492574,1750288252041,-151.0,0.000237,7]
[366492575,1750288252050,-151.0,0.000237,7]
[366492576,1750288252060,-151.0,0.000237,7]
[366492577,1750288252069,-151.0,0.000237,7]
[366492578,1750288252079,-151.0,0.000237,2]
[366492579,1750288252089,-194.356652,0.000237,7]
[366492580,1750288252098,-194.356652,0.000237,7]
[366492581,1750288252107,-151.0,0.000237,7]
[366492582,1750288252116,-151.0,0.000237,7]
[366492583,1750288252126,-376.716354,0.000237,7]
[366492584,1750288252135,-376.716354,0.000237,7]
[366492585,1750288252144,-151.0,0.000237,7]
[366492586,1750288252153,-3000.0,0.0002371,2]
[366492587,1750288252163,-3000.0,0.0002371,2]
[366492588,1750288252172,-835.98428123,0.00023718,2]
[366492589,1750288252182,-424.70586748,0.00023718,2]
[366492590,1750288252191,-160.0,0.00023718,2]
[366492591,1750288252201,-160.0,0.00023718,2]
[366492592,1750288252210,-12542.39314967,0.00023718,2]
[366492593,1750288252220,-3000.0,0.0002372,2]
[366492594,1750288252230,-3000.0,0.0002372,2]
[366492595,1750288252239,-3000.0,0.0002373,2]
[366492596,1750288252248,-3000.0,0.0002373,2]
[366492597,1750288252258,-3000.0,0.0002374,2]
[366492598,1750288252268,-3000.0,0.0002374,2]
[366492599,1750288252277,-3000.0,0.0002375,2]
[366492600,1750288252287,-3000.0,0.0002375,2]
[366492601,1750288252296,-3000.0,0.0002376,2]
[366492602,1750288252306,-3000.0,0.0002376,2]
[366492603,1750288252315,-1469.120589,0.0002376,5]
[366492604,1750288252324,-3000.0,0.0002377,2]
[366492605,1750288252334,-3000.0,0.0002377,2]
[366492606,1750288252343,-500.0,0.00023773,2]
[366492607,1750288252352,-500.0,0.00023773,2]
[366492608,1750288252362,-502.07646515,0.00023773,2]
[366492609,1750288252371,-3000.0,0.0002378,2]
[366492610,1750288252381,-3000.0,0.0002378,2]
[366492611,1750288252391,-1000.0,0.0002378,5]
[366492612,1750288252400,-40505.88594462,0.00023788,2]
[366492613,1750288252409,-151.0,0.00023788,7]
[366492614,1750288252422,-162.365828,0.00023788,7]
[366492615,1750288252431,-162.365828,0.00023788,7]
[366492616,1750288252441,-151.0,0.00023788,7]
[366492617,1750288252450,-151.0,0.00023788,7]
[366492618,1750288252459,-151.0,0.00023788,7]
[366492619,1750288252468,-151.0,0.00023788,7]
[366492620,1750288252477,-151.0,0.00023788,2]
[366492621,1750288252486,-194.356652,0.00023788,7]
[366492622,1750288252497,-194.356652,0.00023788,7]
[366492623,1750288252507,-151.0,0.00023788,7]
[366492624,1750288252516,-376.716354,0.00023788,7]
[366492625,1750288252525,-376.716354,0.00023788,7]
[366492626,1750288252534,-151.0,0.00023788,7]
[366492627,1750288252543,-3000.0,0.0002379,2]
[366492628,1750288252552,-3000.0,0.0002379,2]
[366492629,1750288252561,-99972.57061531,0.000238,7]
[366492630,1750288252571,-667.2785748,0.000238,5]
[366492631,1750288252580,-1897.66,0.000238,2]
[366492632,1750288252589,-4000.0,0.000238,10]
[366492633,1750288252598,-1579.61,0.000238,7]
[366492634,1750288252608,-15901.85816339,0.000238,2]
[366492635,1750288252617,-3000.0,0.000238,30]
[366492636,1750288252626,-3000.0,0.000238,2]
[366492637,1750288252635,-3000.0,0.000238,2]
[366492638,1750288252645,-151.0,0.000238,7]
[366492639,1750288252654,-162.365828,0.000238,7]
[366492640,1750288252663,-162.365828,0.000238,7]
[366492641,1750288252673,-151.0,0.000238,7]
[366492642,1750288252682,-151.0,0.000238,7]
[366492643,1750288252691,-1000.0,0.000238,5]
[366492644,1750288252701,-151.0,0.000238,7]
[366492645,1750288252710,-151.0,0.000238,2]
[366492646,1750288252719,-194.356652,0.000238,7]
[366492647,1750288252728,-194.356652,0.000238,7]
[366492648,1750288252737,-151.0,0.000238,7]
[366492649,1750288252747,-39271.85150812,0.000238,2]
[366492650,1750288252855,-1388.36667946,0.000238,2]
[366492651,1750288252974,-1343.91749292,0.000238,2]
[366492652,1750288253443,-979.93441171,0.000219,6]
[366492653,1750288253453,-4101.26,0.00021917,6]
[366492654,1750288253464,-460.0,0.00021917,6]
[366492655,1750288253474,-177.1504183,0.00022,2]
[366492656,1750288253483,-574.2153043,0.00022,2]
[366492657,1750288253492,-979.93441158,0.00022038,6]
[366492658,1750288253503,-979.93441158,0.00022176,6]
[366492659,1750288253512,-4101.26,0.00022191,6]
[366492660,1750288253522,-460.0,0.00022191,6]
[366492661,1750288253531,-979.93441158,0.00022314,7]
[366492662,1750288253540,-979.93441158,0.00022452,7]
[366492663,1750288253549,-1887.56473943,0.00022465,6]
[366492664,1750288253565,-151.0,0.00022136,6]
[366492665,1750288253574,-124.5607214,0.00022465,6]
[366492666,1750288253774,-561.23456892,0.00021917,6]
[366492667,1750288253784,-164.03849787,0.00021917,6]
[366492668,1750288253795,-295.96150213,0.00021917,6]
[366492669,1750288253805,-151.0,0.00022163,6]
[366492670,1750288253814,-198.0,0.00022191,6]
[366492671,1750288253823,-64.22218403,0.00022465,6]
[366492672,1750288253835,-692.31,0.00022465,6]
[366492673,1750288253848,-1332.60235514,0.00022465,6]
[366492674,1750288253858,-460.0,0.00022465,6]
[366492675,1750288253867,-979.93441158,0.0002259,7]
[366492676,1750288253877,-845.78193577,0.00022621,2]
[366492677,1750288253886,-979.93441158,0.00022728,7]
[366492678,1750288253896,-4101.26,0.00022739,6]
[366492679,1750288253905,-460.0,0.00022739,6]
[366492680,1750288253915,-979.93441158,0.00022866,8]
[366492681,1750288253924,-979.93441158,0.00023003,8]
[366492682,1750288253933,-4101.26,0.00023013,6]
[366492683,1750288253942,-460.0,0.00023013,6]
[366492684,1750288253951,-979.93441158,0.00023141,8]
[366492685,1750288253961,-979.93441158,0.00023279,8]
[366492686,1750288253971,-4101.26,0.00023287,6]
[366492687,1750288253980,-460.0,0.00023287,6]
[366492688,1750288253990,-406.0,0.00023389,2]
[366492689,1750288253999,-979.93441158,0.00023417,9]
[366492690,1750288254009,-979.93441158,0.00023555,9]
[366492691,1750288254018,-4101.26,0.00023561,6]
[366492692,1750288254028,-460.0,0.00023561,6]
[366492693,1750288254037,-979.93441158,0.00023693,9]
[366492694,1750288254047,-14955.1443195,0.000238,2]
[366492695,1750288254056,-376.716354,0.000238,7]
[366492696,1750288254066,-376.716354,0.000238,7]
[366492697,1750288254076,-240.754356,0.000238,7]
[366492698,1750288254085,-3000.0,0.0002381,30]
[366492699,1750288254095,-3000.0,0.0002381,2]
[366492700,1750288254104,-3000.0,0.0002381,2]
[366492701,1750288254114,-420.0,0.00023817,2]
[366492702,1750288254124,-3000.0,0.0002382,30]
[366492703,1750288254133,-3000.0,0.0002382,2]
[366492704,1750288254143,-3000.0,0.0002382,2]
[366492705,1750288254152,-3000.0,0.0002383,30]
[366492706,1750288254162,-3000.0,0.0002383,2]